[Event "Titled Tuesday Blitz February 22 Early 2022"]
[White "Lopez Gracia, Fernando"]
[Black "Svane, Frederik"]
[WhiteFideId "2207184"]
[BlackFideId "12923044"]
[WhiteElo "2432"]
[BlackElo "2459"]
[Result "0-1"]
[Round "01"]
[TimeControl "180+1"]
[Date "2022.02.22"]
[WhiteClock "0:01:08"]
[BlackClock "0:02:19"]

1. c4 {[%clk 0:03:00]}  e6 {[%clk 0:02:59]} 2. Nf3 {[%clk 0:03:00]}  Nf6 {[%clk 0:02:59]} 3. e3 {[%clk 0:02:58]}  d5 {[%clk 0:02:59]} 4. b3 {[%clk 0:02:59]}  Bd6 {[%clk 0:02:59]} 5. Bb2 {[%clk 0:02:59]}  O-O {[%clk 0:03:00]} 6. g3 {[%clk 0:02:59]}  c5 {[%clk 0:02:57]} 7. Bg2 {[%clk 0:02:58]}  Nc6 {[%clk 0:02:56]} 8. cxd5 {[%clk 0:02:55]}  exd5 {[%clk 0:02:57]} 9. O-O {[%clk 0:02:55]}  Bg4 {[%clk 0:02:55]} 10. h3 {[%clk 0:02:52]}  Bh5 {[%clk 0:02:55]} 11. g4 {[%clk 0:02:51]}  Bg6 {[%clk 0:02:55]} 12. d4 {[%clk 0:02:50]}  cxd4 {[%clk 0:02:54]} 13. Nxd4 {[%clk 0:02:50]}  h5 {[%clk 0:02:55]} 14. Nxc6 {[%clk 0:02:32]}  bxc6 {[%clk 0:02:56]} 15. Nc3 {[%clk 0:02:25]}  hxg4 {[%clk 0:02:55]} 16. hxg4 {[%clk 0:02:24]}  Re8 {[%clk 0:02:51]} 17. Rc1 {[%clk 0:02:22]}  Rc8 {[%clk 0:02:50]} 18. Na4 {[%clk 0:02:18]}  Ne4 {[%clk 0:02:48]} 19. Bd4 {[%clk 0:01:43]}  Qh4 {[%clk 0:02:40]} 20. f4 {[%clk 0:01:37]}  c5 {[%clk 0:02:37]} 21. Bb2 {[%clk 0:01:27]}  d4 {[%clk 0:02:37]} 22. exd4 {[%clk 0:01:21]}  Ng3 {[%clk 0:02:37]} 23. dxc5 {[%clk 0:01:08]}  Ne2+ {[%clk 0:02:19]} 0-1


[Site "https://www.chess.com"]

[Event "Titled Tuesday Blitz February 22 Early 2022"]
[White "Martins, Bruno Andre Leite"]
[Black "Samarth, J Rao"]
[WhiteFideId "1942255"]
[BlackFideId "46652370"]
[WhiteElo "2137"]
[BlackElo "1514"]
[Result "1-0"]
[Round "01"]
[TimeControl "180+1"]
[Date "2022.02.22"]
[WhiteClock "0:00:20"]
[BlackClock "0:00:14"]

1. e4 {[%clk 0:02:56]}  c5 {[%clk 0:02:56]} 2. Nf3 {[%clk 0:02:57]}  d6 {[%clk 0:02:54]} 3. d4 {[%clk 0:02:57]}  cxd4 {[%clk 0:02:54]} 4. Nxd4 {[%clk 0:02:58]}  Nf6 {[%clk 0:02:54]} 5. Nc3 {[%clk 0:02:59]}  a6 {[%clk 0:02:52]} 6. Bd3 {[%clk 0:02:59]}  e5 {[%clk 0:02:51]} 7. Nf5 {[%clk 0:02:59]}  Bxf5 {[%clk 0:02:46]} 8. exf5 {[%clk 0:03:00]}  d5 {[%clk 0:02:47]} 9. Bg5 {[%clk 0:03:01]}  Bb4 {[%clk 0:02:38]} 10. O-O {[%clk 0:03:00]}  Bxc3 {[%clk 0:02:38]} 11. bxc3 {[%clk 0:03:01]}  h6 {[%clk 0:02:37]} 12. Bh4 {[%clk 0:02:56]}  Nbd7 {[%clk 0:02:37]} 13. c4 {[%clk 0:02:55]}  d4 {[%clk 0:02:31]} 14. Qf3 {[%clk 0:02:49]}  Qc7 {[%clk 0:02:30]} 15. Rab1 {[%clk 0:02:46]}  Rb8 {[%clk 0:02:29]} 16. Rfe1 {[%clk 0:02:38]}  O-O {[%clk 0:02:29]} 17. g4 {[%clk 0:02:38]}  Nc5 {[%clk 0:02:14]} 18. Bxf6 {[%clk 0:02:29]}  gxf6 {[%clk 0:02:13]} 19. Qh3 {[%clk 0:02:24]}  Kg7 {[%clk 0:02:12]} 20. f4 {[%clk 0:02:18]}  Rbe8 {[%clk 0:01:58]} 21. fxe5 {[%clk 0:02:15]}  fxe5 {[%clk 0:01:59]} 22. f6+ {[%clk 0:02:13]}  Kxf6 {[%clk 0:01:58]} 23. Qxh6+ {[%clk 0:02:12]}  Ke7 {[%clk 0:01:58]} 24. Qh4+ {[%clk 0:01:37]}  f6 {[%clk 0:01:54]} 25. Rxe5+ {[%clk 0:01:23]}  Qxe5 {[%clk 0:01:41]} 26. Re1 {[%clk 0:01:23]}  Kd6 {[%clk 0:01:37]} 27. Rxe5 {[%clk 0:01:21]}  fxe5 {[%clk 0:01:32]} 28. Bf5 {[%clk 0:01:21]}  Re7 {[%clk 0:00:44]} 29. Qh6+ {[%clk 0:01:01]}  Ne6 {[%clk 0:00:43]} 30. Bxe6 {[%clk 0:00:43]}  Rf4 {[%clk 0:00:41]} 31. Bf5+ {[%clk 0:00:31]}  Kc5 {[%clk 0:00:41]} 32. Qf6 {[%clk 0:00:30]}  Re8 {[%clk 0:00:39]} 33. Qf7 {[%clk 0:00:29]}  Rh8 {[%clk 0:00:36]} 34. Qc7+ {[%clk 0:00:24]}  Kb4 {[%clk 0:00:36]} 35. Qxe5 {[%clk 0:00:25]}  Rxf5 {[%clk 0:00:33]} 36. gxf5 {[%clk 0:00:26]}  Rh5 {[%clk 0:00:33]} 37. Qd6+ {[%clk 0:00:24]}  Kc3 {[%clk 0:00:33]} 38. f6 {[%clk 0:00:25]}  b5 {[%clk 0:00:32]} 39. cxb5 {[%clk 0:00:24]}  Rg5+ {[%clk 0:00:24]} 40. Kh1 {[%clk 0:00:24]}  axb5 {[%clk 0:00:21]} 41. f7 {[%clk 0:00:24]}  Rf5 {[%clk 0:00:20]} 42. f8=Q {[%clk 0:00:24]}  Rg5 {[%clk 0:00:17]} 43. Qf3+ {[%clk 0:00:21]}  Kb2 {[%clk 0:00:16]} 44. Qb4+ {[%clk 0:00:21]}  Ka1 {[%clk 0:00:15]} 45. Qd1+ {[%clk 0:00:21]}  Kxa2 {[%clk 0:00:14]} 46. Qdb1# {[%clk 0:00:20]} 1-0


[Site "https://www.chess.com"]

[Event "Titled Tuesday Blitz February 22 Early 2022"]
[White "Meissner, Felix"]
[Black "Bluebaum, Matthias"]
[WhiteFideId "24671827"]
[BlackFideId "24651516"]
[WhiteElo "2350"]
[BlackElo "2550"]
[Result "0-1"]
[Round "01"]
[TimeControl "180+1"]
[Date "2022.02.22"]
[WhiteClock "0:01:30"]
[BlackClock "0:01:15"]

1. e4 {[%clk 0:03:00]}  c6 {[%clk 0:03:00]} 2. d4 {[%clk 0:03:00]}  d5 {[%clk 0:02:57]} 3. exd5 {[%clk 0:02:59]}  cxd5 {[%clk 0:02:58]} 4. Bd3 {[%clk 0:03:00]}  Nc6 {[%clk 0:02:59]} 5. c3 {[%clk 0:03:00]}  Nf6 {[%clk 0:02:59]} 6. Bf4 {[%clk 0:02:58]}  Bg4 {[%clk 0:02:57]} 7. Nf3 {[%clk 0:02:55]}  e6 {[%clk 0:02:57]} 8. Nbd2 {[%clk 0:02:54]}  Bd6 {[%clk 0:02:57]} 9. Bxd6 {[%clk 0:02:54]}  Qxd6 {[%clk 0:02:58]} 10. h3 {[%clk 0:02:54]}  Bh5 {[%clk 0:02:58]} 11. O-O {[%clk 0:02:53]}  O-O {[%clk 0:02:58]} 12. Re1 {[%clk 0:02:53]}  Rab8 {[%clk 0:02:56]} 13. a4 {[%clk 0:02:53]}  a6 {[%clk 0:02:56]} 14. a5 {[%clk 0:02:51]}  Qc7 {[%clk 0:02:54]} 15. b4 {[%clk 0:02:50]}  Ne7 {[%clk 0:02:51]} 16. Rc1 {[%clk 0:02:50]}  Nc8 {[%clk 0:02:36]} 17. Qa4 {[%clk 0:02:32]}  Nd6 {[%clk 0:02:30]} 18. Ne5 {[%clk 0:02:31]}  Rfc8 {[%clk 0:02:08]} 19. Re3 {[%clk 0:02:28]}  Bg6 {[%clk 0:02:06]} 20. Bxg6 {[%clk 0:02:24]}  hxg6 {[%clk 0:02:07]} 21. f3 {[%clk 0:02:17]}  Nf5 {[%clk 0:01:40]} 22. Ree1 {[%clk 0:02:13]}  Nh5 {[%clk 0:01:21]} 23. Nb3 {[%clk 0:02:09]}  f6 {[%clk 0:01:21]} 24. Nd7 {[%clk 0:01:54]}  Qg3 {[%clk 0:01:20]} 25. Qa2 {[%clk 0:01:30]}  Nf4 {[%clk 0:01:19]} 26. Kf1 {[%clk 0:01:30]}  Qh2 {[%clk 0:01:15]} 0-1


[Site "https://www.chess.com"]

[Event "Titled Tuesday Blitz February 22 Early 2022"]
[White "Melian, Juan Sebastian"]
[Black "Gabrielian, Artur"]
[WhiteFideId "3706575"]
[BlackFideId "4131002"]
[WhiteElo "1842"]
[BlackElo "2440"]
[Result "1/2-1/2"]
[Round "01"]
[TimeControl "180+1"]
[Date "2022.02.22"]
[WhiteClock "0:00:10"]
[BlackClock "0:00:05"]

1. e4 {[%clk 0:02:56]}  c5 {[%clk 0:02:59]} 2. b3 {[%clk 0:02:56]}  g6 {[%clk 0:02:58]} 3. Bb2 {[%clk 0:02:56]}  Nf6 {[%clk 0:02:58]} 4. e5 {[%clk 0:02:57]}  Nd5 {[%clk 0:02:58]} 5. Nc3 {[%clk 0:02:57]}  Nxc3 {[%clk 0:02:57]} 6. Bxc3 {[%clk 0:02:58]}  Bg7 {[%clk 0:02:55]} 7. h4 {[%clk 0:02:56]}  Nc6 {[%clk 0:02:54]} 8. h5 {[%clk 0:02:56]}  Bxe5 {[%clk 0:02:52]} 9. Bxe5 {[%clk 0:02:49]}  Nxe5 {[%clk 0:02:51]} 10. f4 {[%clk 0:02:50]}  Nc6 {[%clk 0:02:49]} 11. hxg6 {[%clk 0:02:50]}  fxg6 {[%clk 0:02:49]} 12. Bd3 {[%clk 0:02:51]}  O-O {[%clk 0:02:03]} 13. Rxh7 {[%clk 0:02:48]}  Rf6 {[%clk 0:02:03]} 14. Rh4 {[%clk 0:02:38]}  e5 {[%clk 0:02:03]} 15. Qg4 {[%clk 0:02:00]}  d5 {[%clk 0:02:01]} 16. Qg5 {[%clk 0:01:59]}  e4 {[%clk 0:01:55]} 17. Bb5 {[%clk 0:01:52]}  Nd4 {[%clk 0:01:40]} 18. Qh6 {[%clk 0:01:39]}  Bf5 {[%clk 0:01:37]} 19. g4 {[%clk 0:01:30]}  Nxb5 {[%clk 0:00:58]} 20. gxf5 {[%clk 0:01:15]}  gxf5 {[%clk 0:00:58]} 21. Qh7+ {[%clk 0:01:05]}  Kf8 {[%clk 0:00:58]} 22. Nh3 {[%clk 0:01:01]}  Rf7 {[%clk 0:00:48]} 23. Qh8+ {[%clk 0:00:51]}  Ke7 {[%clk 0:00:47]} 24. Qe5+ {[%clk 0:00:52]}  Kd7 {[%clk 0:00:48]} 25. Qxd5+ {[%clk 0:00:52]}  Nd6 {[%clk 0:00:48]} 26. Ng5 {[%clk 0:00:49]}  Re7 {[%clk 0:00:48]} 27. Rh6 {[%clk 0:00:47]}  Qc7 {[%clk 0:00:43]} 28. Ne6 {[%clk 0:00:30]}  Qc6 {[%clk 0:00:43]} 29. Nxc5+ {[%clk 0:00:30]}  Kc7 {[%clk 0:00:43]} 30. Rxd6 {[%clk 0:00:28]}  Qxd5 {[%clk 0:00:25]} 31. Rxd5 {[%clk 0:00:29]}  Rg8 {[%clk 0:00:19]} 32. O-O-O {[%clk 0:00:29]}  Rf7 {[%clk 0:00:16]} 33. Ne6+ {[%clk 0:00:21]}  Kc6 {[%clk 0:00:15]} 34. Rd8 {[%clk 0:00:21]}  Rg4 {[%clk 0:00:13]} 35. Rh1 {[%clk 0:00:20]}  Re7 {[%clk 0:00:12]} 36. Nd4+ {[%clk 0:00:20]}  Kc7 {[%clk 0:00:12]} 37. Rhh8 {[%clk 0:00:18]}  Rxf4 {[%clk 0:00:12]} 38. Rdf8 {[%clk 0:00:14]}  Rf1+ {[%clk 0:00:11]} 39. Kb2 {[%clk 0:00:14]}  f4 {[%clk 0:00:12]} 40. Rh4 {[%clk 0:00:14]}  f3 {[%clk 0:00:10]} 41. Rhf4 {[%clk 0:00:14]}  a6 {[%clk 0:00:09]} 42. d3 {[%clk 0:00:14]}  e3 {[%clk 0:00:09]} 43. Rxf3 {[%clk 0:00:14]}  Rg1 {[%clk 0:00:08]} 44. R8f4 {[%clk 0:00:10]}  e2 {[%clk 0:00:08]} 45. Nxe2 {[%clk 0:00:10]}  Rxe2 {[%clk 0:00:09]} 46. Rc4+ {[%clk 0:00:11]}  Kb6 {[%clk 0:00:09]} 47. a4 {[%clk 0:00:11]}  Rgg2 {[%clk 0:00:08]} 48. Rf6+ {[%clk 0:00:12]}  Ka7 {[%clk 0:00:08]} 49. Rf7 {[%clk 0:00:12]}  Re6 {[%clk 0:00:07]} 50. Rcc7 {[%clk 0:00:12]}  Rb6 {[%clk 0:00:07]} 51. d4 {[%clk 0:00:12]}  Rd2 {[%clk 0:00:07]} 52. Rfd7 {[%clk 0:00:13]}  a5 {[%clk 0:00:07]} 53. Kc3 {[%clk 0:00:13]}  Rd1 {[%clk 0:00:06]} 54. d5 {[%clk 0:00:13]}  Kb8 {[%clk 0:00:07]} 55. d6 {[%clk 0:00:14]}  Rbxd6 {[%clk 0:00:07]} 56. Rxd6 {[%clk 0:00:13]}  Rxd6 {[%clk 0:00:06]} 57. Rh7 {[%clk 0:00:14]}  Rc6+ {[%clk 0:00:06]} 58. Kb2 {[%clk 0:00:15]}  Rd6 {[%clk 0:00:07]} 59. Rh5 {[%clk 0:00:15]}  b6 {[%clk 0:00:07]} 60. Rh3 {[%clk 0:00:15]}  Kb7 {[%clk 0:00:07]} 61. Rh7+ {[%clk 0:00:15]}  Kc6 {[%clk 0:00:07]} 62. Rh5 {[%clk 0:00:15]}  Re6 {[%clk 0:00:07]} 63. Kc3 {[%clk 0:00:15]}  Re3+ {[%clk 0:00:07]} 64. Kd4 {[%clk 0:00:16]}  Re2 {[%clk 0:00:07]} 65. c3 {[%clk 0:00:15]}  Rg2 {[%clk 0:00:07]} 66. Rh4 {[%clk 0:00:15]}  Rf2 {[%clk 0:00:06]} 67. Kc4 {[%clk 0:00:14]}  Rg2 {[%clk 0:00:06]} 68. Rh6+ {[%clk 0:00:14]}  Kb7 {[%clk 0:00:06]} 69. Rh5 {[%clk 0:00:15]}  Kc6 {[%clk 0:00:06]} 70. Rh4 {[%clk 0:00:14]}  Rf2 {[%clk 0:00:06]} 71. b4 {[%clk 0:00:14]}  axb4 {[%clk 0:00:06]} 72. cxb4 {[%clk 0:00:13]}  Rc2+ {[%clk 0:00:06]} 73. Kb3 {[%clk 0:00:13]}  Rf2 {[%clk 0:00:06]} 74. Rh6+ {[%clk 0:00:13]}  Kb7 {[%clk 0:00:06]} 75. Rh5 {[%clk 0:00:13]}  Rf3+ {[%clk 0:00:06]} 76. Kc4 {[%clk 0:00:13]}  Kc6 {[%clk 0:00:06]} 77. Rh6+ {[%clk 0:00:13]}  Kb7 {[%clk 0:00:06]} 78. Rh5 {[%clk 0:00:12]}  Kc6 {[%clk 0:00:06]} 79. Rg5 {[%clk 0:00:12]}  Rf4+ {[%clk 0:00:06]} 80. Kc3 {[%clk 0:00:13]}  Rh4 {[%clk 0:00:06]} 81. Rg6+ {[%clk 0:00:13]}  Kb7 {[%clk 0:00:06]} 82. Rg3 {[%clk 0:00:12]}  Rf4 {[%clk 0:00:06]} 83. Kb3 {[%clk 0:00:12]}  Kc6 {[%clk 0:00:06]} 84. Rc3+ {[%clk 0:00:13]}  Kb7 {[%clk 0:00:07]} 85. Rc4 {[%clk 0:00:10]}  Rf3+ {[%clk 0:00:07]} 86. Kc2 {[%clk 0:00:11]}  Ra3 {[%clk 0:00:06]} 87. b5 {[%clk 0:00:09]}  Rh3 {[%clk 0:00:06]} 88. Kd2 {[%clk 0:00:09]}  Ra3 {[%clk 0:00:05]} 89. Kc2 {[%clk 0:00:08]}  Rh3 {[%clk 0:00:05]} 90. Kb2 {[%clk 0:00:08]}  Rg3 {[%clk 0:00:05]} 91. Rc3 {[%clk 0:00:09]}  Rg4 {[%clk 0:00:04]} 92. Kb3 {[%clk 0:00:09]}  Rg1 {[%clk 0:00:05]} 93. Kc4 {[%clk 0:00:09]}  Rg4+ {[%clk 0:00:05]} 94. Kb3 {[%clk 0:00:09]}  Rg1 {[%clk 0:00:05]} 95. Rd3 {[%clk 0:00:10]}  Rb1+ {[%clk 0:00:05]} 96. Kc4 {[%clk 0:00:10]}  Rg1 {[%clk 0:00:06]} 97. Rd4 {[%clk 0:00:10]}  Rc1+ {[%clk 0:00:06]} 98. Kd5 {[%clk 0:00:10]}  Rc5+ {[%clk 0:00:07]} 99. Kd6 {[%clk 0:00:11]}  Rc8 {[%clk 0:00:07]} 100. Kd7 {[%clk 0:00:11]}  Rc7+ {[%clk 0:00:08]} 101. Ke6 {[%clk 0:00:11]}  Rc1 {[%clk 0:00:07]} 102. Ke7 {[%clk 0:00:11]}  Kb8 {[%clk 0:00:04]} 103. Rd6 {[%clk 0:00:10]}  Kb7 {[%clk 0:00:04]} 104. Kd8 {[%clk 0:00:10]}  Rc8+ {[%clk 0:00:04]} 105. Ke7 {[%clk 0:00:10]}  Rc1 {[%clk 0:00:04]} 106. Rd7+ {[%clk 0:00:09]}  Kb8 {[%clk 0:00:05]} 107. Rd6 {[%clk 0:00:10]}  Kb7 {[%clk 0:00:05]} 1/2-1/2


[Site "https://www.chess.com"]

[Event "Titled Tuesday Blitz February 22 Early 2022"]
[White "Moroni, Luca Jr"]
[Black "Ljukin, Sergei"]
[WhiteFideId "865834"]
[BlackFideId "14102200"]
[WhiteElo "2573"]
[BlackElo "2312"]
[Result "1-0"]
[Round "01"]
[TimeControl "180+1"]
[Date "2022.02.22"]
[WhiteClock "0:00:11"]
[BlackClock "0:00:08"]

1. d4 {[%clk 0:03:00]}  d5 {[%clk 0:02:54]} 2. c4 {[%clk 0:02:58]}  c6 {[%clk 0:02:54]} 3. Nc3 {[%clk 0:02:57]}  Nf6 {[%clk 0:02:54]} 4. cxd5 {[%clk 0:02:56]}  cxd5 {[%clk 0:02:54]} 5. Bf4 {[%clk 0:02:56]}  Nc6 {[%clk 0:02:54]} 6. e3 {[%clk 0:02:56]}  Bf5 {[%clk 0:02:54]} 7. Qb3 {[%clk 0:02:57]}  Na5 {[%clk 0:02:54]} 8. Qa4+ {[%clk 0:02:57]}  Bd7 {[%clk 0:02:54]} 9. Qd1 {[%clk 0:02:57]}  e6 {[%clk 0:02:43]} 10. Bd3 {[%clk 0:02:57]}  Bb4 {[%clk 0:02:36]} 11. Nf3 {[%clk 0:02:55]}  Rc8 {[%clk 0:02:32]} 12. Rc1 {[%clk 0:02:50]}  Nc4 {[%clk 0:02:25]} 13. Bxc4 {[%clk 0:02:37]}  Rxc4 {[%clk 0:02:24]} 14. O-O {[%clk 0:02:33]}  Bxc3 {[%clk 0:02:10]} 15. bxc3 {[%clk 0:02:32]}  Ne4 {[%clk 0:02:08]} 16. Qb3 {[%clk 0:02:05]}  Qc8 {[%clk 0:02:07]} 17. Qb2 {[%clk 0:01:51]}  Nxc3 {[%clk 0:02:00]} 18. Rc2 {[%clk 0:01:30]}  Na4 {[%clk 0:01:36]} 19. Rxc4 {[%clk 0:01:28]}  dxc4 {[%clk 0:01:36]} 20. Qc2 {[%clk 0:01:25]}  O-O {[%clk 0:01:23]} 21. Ng5 {[%clk 0:01:22]}  g6 {[%clk 0:01:19]} 22. Ne4 {[%clk 0:01:20]}  f6 {[%clk 0:01:11]} 23. Bh6 {[%clk 0:01:13]}  Rf7 {[%clk 0:01:11]} 24. Nd6 {[%clk 0:01:13]}  Qc6 {[%clk 0:01:11]} 25. Nxf7 {[%clk 0:01:13]}  Kxf7 {[%clk 0:01:11]} 26. e4 {[%clk 0:01:11]}  b5 {[%clk 0:01:02]} 27. Be3 {[%clk 0:01:04]}  c3 {[%clk 0:00:55]} 28. Rd1 {[%clk 0:00:49]}  Nb2 {[%clk 0:00:47]} 29. d5 {[%clk 0:00:49]}  Qc7 {[%clk 0:00:24]} 30. Rd4 {[%clk 0:00:38]}  e5 {[%clk 0:00:22]} 31. Rb4 {[%clk 0:00:38]}  a5 {[%clk 0:00:20]} 32. Rxb2 {[%clk 0:00:29]}  cxb2 {[%clk 0:00:19]} 33. Qxc7 {[%clk 0:00:30]}  b1=Q+ {[%clk 0:00:19]} 34. Bc1 {[%clk 0:00:30]}  Ke8 {[%clk 0:00:19]} 35. f3 {[%clk 0:00:22]}  Qd3 {[%clk 0:00:17]} 36. h3 {[%clk 0:00:21]}  Qc4 {[%clk 0:00:15]} 37. Qb8+ {[%clk 0:00:20]}  Qc8 {[%clk 0:00:14]} 38. Qxc8+ {[%clk 0:00:12]}  Bxc8 {[%clk 0:00:14]} 39. Kf2 {[%clk 0:00:09]}  b4 {[%clk 0:00:13]} 40. Be3 {[%clk 0:00:08]}  Ba6 {[%clk 0:00:13]} 41. Bb6 {[%clk 0:00:08]}  a4 {[%clk 0:00:13]} 42. Bc5 {[%clk 0:00:08]}  b3 {[%clk 0:00:13]} 43. axb3 {[%clk 0:00:09]}  axb3 {[%clk 0:00:13]} 44. Ba3 {[%clk 0:00:09]}  Kd7 {[%clk 0:00:13]} 45. g3 {[%clk 0:00:10]}  Bc4 {[%clk 0:00:13]} 46. Bb2 {[%clk 0:00:10]}  Bd3 {[%clk 0:00:13]} 47. Ke3 {[%clk 0:00:10]}  Bc2 {[%clk 0:00:12]} 48. f4 {[%clk 0:00:10]}  exf4+ {[%clk 0:00:13]} 49. gxf4 {[%clk 0:00:11]}  Bb1 {[%clk 0:00:12]} 50. Bxf6 {[%clk 0:00:10]}  Kd6 {[%clk 0:00:11]} 51. Bb2 {[%clk 0:00:10]}  Bc2 {[%clk 0:00:10]} 52. Kd4 {[%clk 0:00:10]}  Bb1 {[%clk 0:00:10]} 53. h4 {[%clk 0:00:10]}  Bc2 {[%clk 0:00:09]} 54. e5+ {[%clk 0:00:11]}  Kd7 {[%clk 0:00:09]} 55. e6+ {[%clk 0:00:11]}  Kd8 {[%clk 0:00:08]} 56. Ke5 {[%clk 0:00:11]} 1-0


[Site "https://www.chess.com"]

[Event "Titled Tuesday Blitz February 22 Early 2022"]
[White "Obolentseva, Alexandra"]
[Black "De Souza Sa, Apolo"]
[WhiteFideId "24153648"]
[BlackFideId "324225390"]
[WhiteElo "2113"]
[BlackElo "1828"]
[Result "1-0"]
[Round "01"]
[TimeControl "180+1"]
[Date "2022.02.22"]
[WhiteClock "0:00:44"]
[BlackClock "0:00:16"]

1. d4 {[%clk 0:02:59]}  Nf6 {[%clk 0:02:59]} 2. c4 {[%clk 0:02:59]}  g6 {[%clk 0:03:00]} 3. Nc3 {[%clk 0:02:58]}  d5 {[%clk 0:03:00]} 4. cxd5 {[%clk 0:02:57]}  Nxd5 {[%clk 0:03:01]} 5. Nf3 {[%clk 0:02:57]}  Bg7 {[%clk 0:03:01]} 6. e3 {[%clk 0:02:57]}  O-O {[%clk 0:03:01]} 7. Bc4 {[%clk 0:02:57]}  Nxc3 {[%clk 0:03:01]} 8. bxc3 {[%clk 0:02:58]}  c5 {[%clk 0:03:02]} 9. O-O {[%clk 0:02:57]}  Nd7 {[%clk 0:03:02]} 10. h3 {[%clk 0:02:50]}  a6 {[%clk 0:03:00]} 11. e4 {[%clk 0:02:48]}  b5 {[%clk 0:02:59]} 12. Bd3 {[%clk 0:02:37]}  Qc7 {[%clk 0:02:52]} 13. Be3 {[%clk 0:02:36]}  Bb7 {[%clk 0:02:51]} 14. Rc1 {[%clk 0:02:34]}  e5 {[%clk 0:02:40]} 15. Bb1 {[%clk 0:02:20]}  Rad8 {[%clk 0:02:19]} 16. Qe2 {[%clk 0:02:17]}  f5 {[%clk 0:01:56]} 17. Ng5 {[%clk 0:01:57]}  Rde8 {[%clk 0:01:35]} 18. d5 {[%clk 0:01:54]}  f4 {[%clk 0:01:17]} 19. Bd2 {[%clk 0:01:50]}  c4 {[%clk 0:01:08]} 20. Ne6 {[%clk 0:01:43]}  Rxe6 {[%clk 0:01:07]} 21. dxe6 {[%clk 0:01:44]}  Nc5 {[%clk 0:01:08]} 22. f3 {[%clk 0:01:36]}  Qd6 {[%clk 0:00:58]} 23. Rfd1 {[%clk 0:01:34]}  Qxe6 {[%clk 0:00:57]} 24. Be1 {[%clk 0:01:33]}  Nd7 {[%clk 0:00:52]} 25. Bf2 {[%clk 0:01:32]}  Nf6 {[%clk 0:00:51]} 26. Rd2 {[%clk 0:01:30]}  g5 {[%clk 0:00:51]} 27. Rcd1 {[%clk 0:01:30]}  h5 {[%clk 0:00:51]} 28. a4 {[%clk 0:01:21]}  g4 {[%clk 0:00:47]} 29. hxg4 {[%clk 0:01:17]}  hxg4 {[%clk 0:00:46]} 30. Ba2 {[%clk 0:01:05]}  g3 {[%clk 0:00:39]} 31. Bc5 {[%clk 0:00:58]}  Nd7 {[%clk 0:00:20]} 32. Rxd7 {[%clk 0:00:55]}  Qh6 {[%clk 0:00:20]} 33. Kf1 {[%clk 0:00:56]}  Qh1+ {[%clk 0:00:20]} 34. Bg1 {[%clk 0:00:56]}  Bc6 {[%clk 0:00:20]} 35. R7d6 {[%clk 0:00:53]}  Rc8 {[%clk 0:00:19]} 36. Rd8+ {[%clk 0:00:52]}  Rxd8 {[%clk 0:00:19]} 37. Rxd8+ {[%clk 0:00:51]}  Kf7 {[%clk 0:00:20]} 38. Rd6 {[%clk 0:00:48]}  Be8 {[%clk 0:00:18]} 39. axb5 {[%clk 0:00:46]}  Bf8 {[%clk 0:00:19]} 40. Qxc4+ {[%clk 0:00:45]}  Kg7 {[%clk 0:00:16]} 41. Qg8# {[%clk 0:00:44]} 1-0


[Site "https://www.chess.com"]

[Event "Titled Tuesday Blitz February 22 Early 2022"]
[White "Omariev, Maksim"]
[Black "Sviridov, Valery"]
[WhiteFideId "4193423"]
[BlackFideId "4120680"]
[WhiteElo "2502"]
[BlackElo "2454"]
[Result "0-1"]
[Round "01"]
[TimeControl "180+1"]
[Date "2022.02.22"]
[WhiteClock "0:00:09"]
[BlackClock "0:00:43"]

1. g4 {[%clk 0:02:57]}  d5 {[%clk 0:02:54]} 2. Bg2 {[%clk 0:02:57]}  Bxg4 {[%clk 0:02:54]} 3. c4 {[%clk 0:02:57]}  c6 {[%clk 0:02:54]} 4. Qb3 {[%clk 0:02:53]}  Nf6 {[%clk 0:02:53]} 5. Qxb7 {[%clk 0:02:52]}  Nbd7 {[%clk 0:02:54]} 6. d3 {[%clk 0:02:50]}  e6 {[%clk 0:02:43]} 7. Nf3 {[%clk 0:02:40]}  Be7 {[%clk 0:02:42]} 8. O-O {[%clk 0:02:39]}  O-O {[%clk 0:02:42]} 9. b3 {[%clk 0:02:30]}  Qb6 {[%clk 0:02:38]} 10. Qxb6 {[%clk 0:02:27]}  axb6 {[%clk 0:02:39]} 11. Nc3 {[%clk 0:02:23]}  Rfe8 {[%clk 0:02:24]} 12. Bb2 {[%clk 0:02:21]}  h6 {[%clk 0:02:24]} 13. a3 {[%clk 0:02:01]}  Nc5 {[%clk 0:02:12]} 14. b4 {[%clk 0:02:00]}  Nb3 {[%clk 0:02:11]} 15. Rad1 {[%clk 0:01:54]}  c5 {[%clk 0:01:56]} 16. cxd5 {[%clk 0:01:37]}  exd5 {[%clk 0:01:55]} 17. bxc5 {[%clk 0:01:31]}  bxc5 {[%clk 0:01:56]} 18. Ne5 {[%clk 0:01:25]}  Be6 {[%clk 0:01:47]} 19. e4 {[%clk 0:01:06]}  d4 {[%clk 0:01:45]} 20. Nb5 {[%clk 0:01:02]}  Reb8 {[%clk 0:01:17]} 21. Nc7 {[%clk 0:01:01]}  Bd6 {[%clk 0:01:16]} 22. Nxe6 {[%clk 0:00:53]}  Bxe5 {[%clk 0:01:12]} 23. f4 {[%clk 0:00:53]}  fxe6 {[%clk 0:01:11]} 24. fxe5 {[%clk 0:00:53]}  Nd7 {[%clk 0:01:06]} 25. Bh3 {[%clk 0:00:52]}  Ra6 {[%clk 0:01:07]} 26. Bc1 {[%clk 0:00:32]}  Nxc1 {[%clk 0:00:48]} 27. Rxc1 {[%clk 0:00:33]}  Rb3 {[%clk 0:00:48]} 28. Rfd1 {[%clk 0:00:14]}  Kf7 {[%clk 0:00:44]} 29. Rb1 {[%clk 0:00:12]}  Raxa3 {[%clk 0:00:43]} 30. Rxb3 {[%clk 0:00:10]}  Rxb3 {[%clk 0:00:44]} 31. Kf2 {[%clk 0:00:11]}  Nxe5 {[%clk 0:00:43]} 32. Ke2 {[%clk 0:00:11]}  c4 {[%clk 0:00:42]} 33. dxc4 {[%clk 0:00:06]}  Rxh3 {[%clk 0:00:42]} 34. Rxd4 {[%clk 0:00:07]}  Rxh2+ {[%clk 0:00:42]} 35. Ke3 {[%clk 0:00:08]}  Rh3+ {[%clk 0:00:43]} 36. Kf4 {[%clk 0:00:09]}  Kf6 {[%clk 0:00:43]} 0-1


[Site "https://www.chess.com"]